bitfinex/quotes_SOLUSD_20251106
["timestamp","ask_amount","ask_price","bid_price","bid_amount"]
[1762417026889,0.67,159.46,159.42,27.63950623]
[1762417027287,0.1,159.47,159.45,5.68492087]
[1762417027597,0.1,159.47,159.45,20.592]
[1762417027779,0.1,159.47,159.43,23.38527322]
[1762417028104,0.1,159.47,159.43,26.55692087]
[1762417028287,0.1,159.47,159.44,5.68492087]
[1762417028492,0.1,159.47,159.45,6.27155848]
[1762417030206,0.1,159.47,159.46,20.592]
[1762417030408,0.77,159.47,159.44,20.592]
[1762417030622,0.77,159.47,159.44,26.86383497]
[1762417030925,0.77,159.47,159.44,32.54875584]
[1762417031120,0.77,159.47,159.44,26.86383497]
[1762417031622,6.45492087,159.47,159.44,20.592]
[1762417031809,6.35492087,159.46,159.41,13.59277727]
[1762417032018,6.35492087,159.46,159.41,6.27277727]
[1762417032197,0.67,159.45,159.41,6.27277727]
[1762417033417,0.67,159.45,159.4,26.8654843]
[1762417033626,0.67,159.45,159.4,32.55040517]
[1762417033827,6.35492087,159.45,159.4,26.8654843]
[1762417034010,0.67,159.45,159.4,32.55040517]
[1762417034210,0.67,159.44,159.4,32.55040517]
[1762417034612,0.67,159.44,159.4,27.64221947]
[1762417035309,6.35492087,159.44,159.4,6.2734843]
[1762417035728,0.67,159.43,159.4,6.2734843]
[1762417036122,0.67,159.43,159.39,5.68492087]
[1762417036318,0.67,159.43,159.39,11.95879138]
[1762417037225,0.67,159.43,159.39,11.95870524]
[1762417037428,0.67,159.43,159.39,6.27378437]
[1762417037930,0.67,159.43,159.37,6.27438902]
[1762417037931,5.68492087,159.42,159.37,6.27438902]
[1762417038237,5.68492087,159.41,159.37,6.27438902]
[1762417038415,6.94237962,159.43,159.34,50.10879939]
[1762417038416,5.68492087,159.39,159.34,23.00879939]
[1762417038618,20.592,159.4,159.35,21.96422967]
[1762417039042,0.67,159.39,159.35,6.27549419]
[1762417039222,0.67,159.39,159.34,13.00492087]
[1762417039423,0.67,159.39,159.35,5.68492087]
[1762417040110,0.67,159.39,159.34,13.00492087]
[1762417041021,0.67,159.39,159.35,5.68492087]
[1762417041225,0.67,159.39,159.36,6.2751004]
[1762417041917,0.67,159.39,159.36,27.64777227]
[1762417042142,55.78492087,159.47,159.38,5.68492087]
[1762417042449,5.68492087,159.43,159.36,21.9628514]
[1762417042622,5.68492087,159.43,159.37,5.68492087]
[1762417042824,0.7,159.42,159.36,29.2828514]
[1762417043029,0.7,159.42,159.36,34.96777227]
[1762417043342,0.7,159.42,159.37,5.68492087]
[1762417043519,0.7,159.42,159.36,29.2828514]
[1762417043714,0.7,159.42,159.36,34.96777227]
[1762417043930,6.38492087,159.42,159.36,21.9628514]
[1762417044441,0.7,159.41,159.36,21.9628514]
[1762417044615,6.38492087,159.41,159.36,6.2751004]
[1762417045025,0.7,159.4,159.36,6.2751004]
[1762417045715,0.7,159.4,159.35,6.27539259]
[1762417046035,6.38492087,159.4,159.35,6.27539259]
[1762417046452,0.7,159.39,159.35,6.27539259]
[1762417047233,0.7,159.39,159.35,11.96031346]
[1762417048326,0.7,159.39,159.36,5.68492087]
[1762417049142,0.7,159.39,159.36,6.27493027]
[1762417050820,21.292,159.43,159.38,5.68492087]
[1762417051150,21.292,159.43,159.4,6.27352572]
[1762417051151,0.7,159.42,159.4,6.27352572]
[1762417052427,0.7,159.42,159.39,14.24640498]
[1762417052626,0.7,159.42,159.37,27.1]
[1762417052627,0.7,159.42,159.38,14.24677273]
[1762417053526,20.592,159.41,159.38,14.24677273]
[1762417053930,21.292,159.41,159.38,14.24677273]
[1762417054131,0.7,159.41,159.38,14.24677273]
[1762417054447,0.7,159.46,159.4,7.97250424]
[1762417054633,0.7,159.46,159.44,7.97250424]
[1762417055252,0.7,159.46,159.45,6.27155848]
[1762417055436,0.7,159.46,159.43,7.97250424]
[1762417055649,0.7,159.46,159.43,14.24482046]
[1762417056251,0.7,159.46,159.44,7.97250424]
[1762417056432,0.1,159.5,159.45,7.94715584]
[1762417056632,0.1,159.5,159.48,7.97250424]
[1762417057051,0.1,159.5,159.49,6.26998557]
[1762417057253,0.1,159.5,159.49,14.24248981]
[1762417058251,0.1,159.5,159.47,6.27069227]
[1762417058553,0.81,159.5,159.47,14.24319651]
[1762417058750,0.81,159.5,159.48,7.97250424]
[1762417059048,0.81,159.5,159.49,6.26998557]
[1762417060250,0.1,159.5,159.49,6.26998557]
[1762417060941,0.1,159.5,159.49,7.97250424]
[1762417062238,0.1,159.5,159.46,15.67695824]
[1762417062553,7.97250424,159.47,159.41,7.97250424]
[1762417062952,0.71,159.46,159.38,10.06882769]
[1762417063149,0.71,159.46,159.42,7.97250424]
[1762417063352,0.71,159.46,159.43,7.97250424]
[1762417063549,0.71,159.49,159.45,7.97250424]
[1762417064348,0.71,159.49,159.44,7.97250424]
[1762417065056,0.71,159.49,159.43,29.92571253]
[1762417066661,0.71,159.49,159.44,7.97250424]
[1762417066972,8.68250424,159.49,159.43,29.92571253]
[1762417067346,8.68250424,159.49,159.43,6.27234522]
[1762417067347,7.97250424,159.47,159.43,6.27234522]
[1762417067743,0.71,159.46,159.43,6.27234522]
[1762417068344,0.71,159.46,159.42,6.27273867]
[1762417069565,7.97250424,159.44,159.4,6.27320798]
[1762417069750,8.68250424,159.46,159.4,14.24571222]
[1762417069954,21.302,159.45,159.41,7.97250424]
[1762417070453,0.71,159.44,159.41,14.24534167]
[1762417071457,0.71,159.44,159.39,7.97250424]
[1762417071773,0.71,159.44,159.4,6.27339809]
[1762417072651,0.1,159.5,159.43,28.56450424]
[1762417072850,0.72,159.49,159.44,7.97250424]
[1762417073050,0.72,159.49,159.41,28.232]
[1762417073051,0.72,159.49,159.45,7.97250424]
[1762417073651,0.72,159.49,159.41,7.36]
[1762417073858,20.592,159.46,159.43,7.97250424]
[1762417074055,21.312,159.46,159.42,7.97250424]
[1762417074365,21.312,159.46,159.43,7.97250424]
[1762417074559,21.312,159.46,159.44,6.27195183]
[1762417076675,21.312,159.46,159.43,14.24484946]
[1762417077168,21.312,159.46,159.43,6.27234522]
[1762417077467,0.72,159.45,159.41,6.27288577]
[1762417077847,0.72,159.45,159.41,14.24539001]
[1762417078466,0.72,159.45,159.42,7.97250424]
[1762417079057,0.72,159.45,159.4,21.95734002]
[1762417079058,0.72,159.45,159.41,7.97250424]
[1762417079853,8.69250424,159.45,159.4,7.97250424]
[1762417080262,0.72,159.44,159.4,7.97250424]
[1762417080462,8.69250424,159.44,159.38,7.97250424]
[1762417080664,8.69250424,159.44,159.39,7.97250424]
[1762417080965,8.69250424,159.44,159.39,14.24630608]
[1762417080966,0.72,159.43,159.39,14.24630608]
[1762417081752,0.72,159.43,159.4,7.97250424]
[1762417081948,0.72,159.43,159.39,14.24630608]
[1762417082590,0.72,159.43,159.38,14.24672904]
[1762417082875,8.69250424,159.43,159.38,6.2742248]
[1762417083078,7.97250424,159.42,159.37,7.97250424]
[1762417083251,0.72,159.42,159.37,7.97250424]
[1762417083576,0.72,159.41,159.37,7.97250424]
[1762417083874,14.24492387,159.43,159.4,7.97250424]
[1762417083875,20.592,159.42,159.4,7.97250424]
[1762417084075,21.312,159.42,159.4,7.97250424]
[1762417084252,21.312,159.42,159.41,7.97250424]
[1762417084749,0.72,159.42,159.41,7.97250424]
[1762417085147,0.72,159.45,159.41,7.97250424]
[1762417085460,0.72,159.44,159.36,7.38]
[1762417085670,0.72,159.44,159.4,7.97250424]
[1762417086064,0.72,159.44,159.41,6.27313217]
[1762417086265,0.72,159.44,159.41,14.24563641]
[1762417086659,0.72,159.44,159.43,7.97250424]
[1762417086859,0.72,159.44,159.41,6.27313217]
[1762417087077,0.72,159.44,159.41,14.24563641]
[1762417087674,0.72,159.44,159.4,7.97250424]
[1762417088059,0.72,159.44,159.4,14.24573848]
[1762417088981,0.72,159.44,159.38,15.68487297]
[1762417088982,6.99210365,159.44,159.39,7.97250424]
[1762417089385,0.72,159.43,159.39,7.97250424]
[1762417090383,0.72,159.43,159.4,6.27352572]
[1762417090753,0.72,159.43,159.39,14.24633098]
[1762417091389,0.72,159.43,159.39,7.97250424]
[1762417091565,0.72,159.43,159.39,14.24636391]
[1762417092157,21.312,159.45,159.42,7.97250424]
[1762417092361,20.592,159.45,159.42,7.97250424]
[1762417092662,0.72,159.44,159.42,7.97250424]
[1762417093572,0.72,159.44,159.43,6.27234522]
[1762417093766,0.72,159.44,159.43,7.97250424]
[1762417093977,0.72,159.44,159.39,33.37372388]
[1762417094283,35.55659147,159.44,159.38,6.27423511]
[1762417094487,3.40677362,159.42,159.38,6.27423511]
[1762417094783,0.72,159.43,159.38,6.27423511]
[1762417094986,0.72,159.43,159.36,3.40677362]
[1762417095175,3.40677362,159.42,159.36,3.40677362]
[1762417095376,3.40677362,159.42,159.36,9.68178276]
[1762417095577,0.72,159.43,159.36,9.68178276]
[1762417095578,0.72,159.41,159.36,9.68178276]
[1762417095776,0.72,159.41,159.36,25.36953376]
[1762417096194,0.72,159.41,159.36,9.68178276]
[1762417096384,0.72,159.41,159.36,14.2502298]
[1762417097592,0.72,159.41,159.36,29.9379808]
[1762417098389,0.72,159.41,159.36,21.96276014]
[1762417098770,0.72,159.41,159.36,29.9379808]
[1762417100889,7.97522066,159.4,159.34,6.27554079]
[1762417101080,7.97522066,159.39,159.34,6.27554079]
[1762417101394,8.69522066,159.4,159.34,6.27554079]
[1762417101886,14.96879248,159.4,159.34,6.27554079]
[1762417102093,0.72,159.39,159.34,6.27554079]
[1762417102295,0.72,159.39,159.34,14.25076145]
[1762417102593,109.78882769,159.43,159.35,0.28]
[1762417102783,0.1,159.5,159.42,7.97522066]
[1762417102986,0.69,159.46,159.4,0.28]
[1762417103177,0.69,159.46,159.42,7.97522066]
[1762417103879,0.69,159.46,159.43,6.27234522]
[1762417104087,7.97522066,159.48,159.43,6.27234522]
[1762417104793,20.692,159.5,159.43,6.27234522]
[1762417104970,7.97522066,159.49,159.43,14.24756588]
[1762417105170,17.86404835,159.5,159.43,6.27234522]
[1762417105374,44.72580963,159.5,159.43,14.24756588]
[1762417105691,7.97522066,159.48,159.41,7.97522066]
[1762417105901,6.27077193,159.47,159.41,14.24835283]
[1762417106081,6.96077193,159.47,159.41,14.24835283]
[1762417106282,0.69,159.46,159.41,14.24835283]
[1762417106491,0.69,159.46,159.42,7.97522066]
[1762417107697,0.1,159.5,159.45,7.97522066]
[1762417107883,0.1,159.5,159.48,6.27037873]
[1762417108196,0.1,159.5,159.48,14.24559939]
[1762417108395,0.1,159.53,159.49,8.67522066]
[1762417108572,0.1,159.53,159.52,7.97522066]
[1762417109097,0.1,159.53,159.52,8.67522066]
[1762417109988,0.1,159.53,159.52,7.97522066]
[1762417110190,0.1,159.61,159.52,14.94402707]
[1762417110378,0.1,159.61,159.53,10.27531913]
[1762417110694,0.1,159.61,159.59,7.97522066]
[1762417111400,0.1,159.61,159.6,7.97522066]
[1762417111599,0.1,159.61,159.57,0.7]
[1762417111779,0.1,159.61,159.59,7.97522066]
[1762417112093,0.1,159.61,159.59,14.24125128]
[1762417112288,0.1,159.61,159.59,7.97522066]
[1762417112472,0.1,159.61,159.59,5.66243235]
[1762417112798,0.1,159.61,159.57,6.96682551]
[1762417112979,0.1,159.61,159.58,5.66243235]
[1762417113887,0.1,159.61,159.59,5.66243235]
[1762417114089,0.1,159.61,159.59,6.96601731]
[1762417114278,0.1,159.61,159.6,5.66243235]
[1762417114886,0.1,159.61,159.59,5.66243235]
[1762417115772,0.1,159.61,159.57,0.7]
[1762417115976,0.1,159.61,159.59,5.66243235]
[1762417116179,0.1,159.61,159.58,11.92851841]
[1762417116982,0.1,159.61,159.58,5.66243235]
[1762417117190,0.1,159.61,159.57,6.26678285]
[1762417117191,0.69,159.6,159.57,6.26678285]
[1762417117380,0.69,159.6,159.57,11.9292152]
[1762417117699,0.1,159.61,159.57,11.9292152]
[1762417117885,0.79,159.61,159.56,6.26718157]
[1762417118093,12.7177389,159.61,159.55,5.66243235]
[1762417118481,0.69,159.6,159.55,5.66243235]
[1762417118795,0.69,159.6,159.56,5.66243235]
[1762417120207,0.69,159.6,159.55,11.92967779]
[1762417120501,0.69,159.6,159.56,5.66243235]
[1762417121005,0.69,159.6,159.57,5.66243235]
[1762417121201,26.9575738,159.61,159.56,6.94707065]
[1762417121379,0.69,159.59,159.56,11.929503]
[1762417121782,0.69,159.59,159.56,5.66243235]
[1762417124309,0.69,159.59,159.55,11.93006005]
[1762417124671,0.69,159.59,159.55,12.61006005]
[1762417124910,0.1,159.61,159.58,5.66243235]
[1762417125505,0.1,159.61,159.57,6.34243235]
[1762417126100,0.1,159.61,159.58,5.66243235]
[1762417126976,0.1,159.61,159.58,11.92857045]
[1762417127496,0.1,159.61,159.57,0.68]
[1762417127497,0.69,159.6,159.57,5.66243235]
[1762417127698,6.35243235,159.6,159.56,6.26723489]
[1762417127875,0.69,159.6,159.56,11.92966724]
[1762417128076,0.1,159.61,159.57,1.16628758]
[1762417128276,0.1,159.61,159.6,21.11369239]
[1762417128676,0.1,159.61,159.6,21.79369239]
[1762417129185,0.1,159.61,159.6,22.3969242]
[1762417129386,0.1,159.61,159.6,28.05935655]
[1762417129606,0.1,159.63,159.6,43.72351695]
[1762417129900,0.1,159.63,159.62,15.45126004]
[1762417130406,0.1,159.63,159.62,16.13126004]
[1762417131178,0.1,159.63,159.6,7.4]
[1762417131386,0.1,159.63,159.62,5.66243235]
[1762417131701,0.1,159.63,159.62,15.45126004]
[1762417131909,0.1,159.63,159.62,16.13126004]
[1762417133090,0.1,159.63,159.62,22.39613912]
[1762417133686,0.71,159.72,159.63,9.78882769]
[1762417133910,21.302,159.72,159.69,5.66243235]
[1762417134212,21.302,159.72,159.66,0.69]
[1762417134413,21.302,159.72,159.7,5.66243235]
[1762417134586,21.302,159.72,159.69,5.66243235]
[1762417134787,0.71,159.71,159.69,5.66243235]
[1762417134986,0.71,159.71,159.68,5.66243235]
[1762417135499,0.71,159.74,159.7,5.66243235]
[1762417135694,0.71,159.74,159.69,5.66243235]
[1762417135892,0.71,159.74,159.68,5.66243235]
[1762417136210,21.302,159.74,159.69,5.66243235]
[1762417136414,0.71,159.74,159.7,5.66243235]
[1762417136711,0.71,159.73,159.7,5.66243235]
[1762417137006,0.71,159.73,159.72,5.66243235]
[1762417137185,0.71,159.73,159.71,5.66243235]
[1762417137386,20.592,159.75,159.7,5.66243235]
[1762417137586,0.71,159.73,159.7,5.66243235]
[1762417137790,0.71,159.73,159.69,5.66243235]
[1762417138006,6.37243235,159.73,159.64,9.78882769]
[1762417138205,6.37243235,159.73,159.66,5.66243235]
[1762417138409,0.71,159.72,159.66,5.66243235]
[1762417139195,6.26134869,159.71,159.65,5.66243235]
[1762417139390,5.66243235,159.69,159.64,6.26409421]
[1762417139602,5.66243235,159.69,159.63,6.26442714]
[1762417139800,0.71,159.68,159.63,11.92685949]
[1762417140216,6.37243235,159.68,159.62,5.66243235]
[1762417140512,21.302,159.68,159.62,11.92730826]
[1762417140718,21.302,159.67,159.61,12.61768746]
[1762417140926,21.302,159.67,159.63,5.66243235]
[1762417141100,21.302,159.67,159.62,5.66243235]
[1762417141293,21.302,159.67,159.62,11.92713275]
[1762417141603,20.592,159.65,159.58,10.47882769]
[1762417141803,20.592,159.65,159.59,5.66243235]
[1762417142110,21.302,159.65,159.62,5.66243235]
[1762417142296,0.71,159.64,159.62,5.66243235]
[1762417142488,0.71,159.64,159.6,5.66243235]
[1762417142692,11.92536088,159.67,159.6,5.66243235]
[1762417142693,0.71,159.65,159.6,5.66243235]
[1762417143411,5.66243235,159.64,159.58,5.66243235]
[1762417143721,20.592,159.63,159.58,11.92886551]
[1762417143911,21.302,159.63,159.58,11.92886551]
[1762417144101,0.71,159.62,159.58,11.92886551]
[1762417145122,0.71,159.62,159.58,6.26643316]
[1762417145721,5.66243235,159.59,159.52,9.78882769]
[1762417145914,6.97493887,159.62,159.51,0.69]
[1762417145915,5.66243235,159.58,159.51,0.69]
[1762417146117,5.66243235,159.58,159.52,5.66243235]
[1762417146307,0.71,159.57,159.52,5.66243235]
[1762417146508,6.37243235,159.57,159.51,5.66243235]
[1762417146706,12.63933325,159.57,159.51,5.66243235]
[1762417146911,0.71,159.56,159.51,5.66243235]
[1762417148613,6.97732466,159.56,159.5,15.67398119]
[1762417148805,12.63975701,159.56,159.5,21.33641354]
[1762417149006,31.37114756,159.69,159.5,21.33641354]
[1762417149007,50.0,159.67,159.55,5.66243235]
[1762417149205,5.66243235,159.67,159.56,9.78882769]
[1762417149533,55.66243235,159.67,159.6,5.66243235]
[1762417149730,5.66243235,159.68,159.61,5.66243235]
[1762417150023,20.592,159.65,159.62,5.66243235]
[1762417150237,105.66243235,159.69,159.57,1.31668421]
[1762417150238,5.66243235,159.7,159.63,5.66243235]
[1762417150593,56.26168153,159.71,159.64,11.92616185]
[1762417150801,20.592,159.69,159.65,5.66243235]
[1762417150995,5.66243235,159.72,159.65,5.66243235]
[1762417150996,0.71,159.72,159.68,5.66243235]
[1762417151411,21.302,159.72,159.68,5.66243235]
[1762417151826,20.592,159.71,159.68,5.66243235]
[1762417152017,6.2606387,159.73,159.66,0.69]
[1762417152331,115.648495,159.76,159.66,0.69]
[1762417152332,20.592,159.7,159.67,5.66243235]
[1762417152826,20.592,159.7,159.67,6.35243235]
[1762417153030,21.302,159.69,159.63,0.69]
[1762417153331,26.96443235,159.69,159.62,11.92727566]
[1762417153496,5.66243235,159.67,159.61,11.92763265]
[1762417153818,5.66243235,159.67,159.61,6.2652003]
[1762417154124,0.71,159.66,159.61,6.2652003]
[1762417154504,6.37243235,159.66,159.61,6.2652003]
[1762417154919,0.71,159.65,159.61,6.2652003]
[1762417155512,6.37243235,159.67,159.61,12.61763265]
[1762417155704,6.37243235,159.67,159.61,11.92763265]
[1762417155705,0.71,159.66,159.61,11.92763265]
[1762417155911,0.71,159.66,159.61,6.2652003]
[1762417156930,5.66243235,159.63,159.57,15.66703735]
[1762417157135,5.66243235,159.63,159.57,11.92927448]
[1762417157300,6.37243235,159.63,159.57,11.92927448]
[1762417157501,0.71,159.62,159.57,11.92927448]
[1762417157922,0.71,159.62,159.57,12.61927448]
[1762417158523,0.71,159.62,159.57,11.92927448]
[1762417158698,20.592,159.65,159.59,5.66243235]
[1762417158903,20.592,159.65,159.6,5.66243235]
[1762417158904,0.71,159.64,159.6,5.66243235]
[1762417159202,6.37243235,159.64,159.59,5.66243235]
[1762417159410,0.71,159.64,159.59,5.66243235]
[1762417159630,0.71,159.64,159.58,0.69]
[1762417159807,0.71,159.64,159.59,5.66243235]
[1762417160206,0.71,159.64,159.59,12.61812856]
[1762417160402,6.97416987,159.64,159.59,6.26569621]
[1762417160627,6.37243235,159.64,159.59,6.26569621]
[1762417160936,0.71,159.63,159.59,6.26569621]
[1762417161513,6.37243235,159.63,159.58,6.26636253]
[1762417161719,0.71,159.63,159.58,12.61879488]
[1762417162531,20.592,159.65,159.59,0.69]
[1762417162725,20.592,159.65,159.6,5.66243235]
[1762417162908,21.282,159.65,159.6,6.35243235]
[1762417163113,26.94443235,159.65,159.6,6.35243235]
[1762417163527,5.66243235,159.7,159.6,6.35243235]
[1762417163528,0.69,159.71,159.64,5.66243235]
[1762417163734,0.69,159.7,159.64,5.66243235]
[1762417164009,0.69,159.7,159.64,6.35243235]
[1762417164213,0.69,159.7,159.66,6.26330953]
[1762417164641,6.35243235,159.7,159.65,6.26369952]
[1762417164843,0.69,159.7,159.65,11.92613187]
[1762417165163,0.69,159.7,159.66,5.66243235]
[1762417165626,0.69,159.7,159.65,11.92613187]
[1762417166226,6.2614494,159.71,159.65,11.92613187]
[1762417166427,6.2614494,159.71,159.66,6.35243235]
[1762417166625,6.26095667,159.72,159.66,12.61547751]
[1762417166849,0.69,159.71,159.66,12.61547751]
[1762417167228,6.35243235,159.71,159.66,6.26304516]
[1762417167424,6.35243235,159.71,159.65,11.92604149]
[1762417167645,0.69,159.7,159.65,11.92604149]
[1762417168139,11.92338902,159.72,159.66,0.69]
[1762417168140,0.69,159.72,159.66,0.69]
[1762417168345,0.69,159.72,159.67,5.66243235]
[1762417168743,6.95101934,159.72,159.67,6.26291726]
[1762417169247,0.69,159.71,159.67,6.26291726]
[1762417169543,6.26101934,159.72,159.67,12.61534961]
[1762417169747,6.95101934,159.72,159.67,12.61534961]
[1762417169947,6.95101934,159.72,159.67,6.95291726]
[1762417170544,6.95101934,159.72,159.67,0.69]
[1762417170755,6.35243235,159.71,159.66,6.26325606]
[1762417171258,0.69,159.7,159.65,11.92603323]
[1762417171458,0.69,159.7,159.65,6.26360088]
[1762417172241,5.66243235,159.68,159.6,0.69]
[1762417172432,26.25443235,159.67,159.61,5.66243235]
[1762417172822,6.35243235,159.66,159.6,0.69]
[1762417173022,5.66243235,159.65,159.6,0.69]
[1762417173541,5.66243235,159.65,159.6,6.35243235]
[1762417173740,6.35243235,159.65,159.6,6.35243235]
[1762417174147,6.35243235,159.65,159.6,6.95536804]
[1762417174445,8.64258387,159.65,159.6,14.90795191]
[1762417174630,14.906296,159.65,159.6,14.90795191]
[1762417174826,14.216296,159.65,159.6,0.69]
[1762417175045,8.64258387,159.64,159.6,6.95564687]
[1762417175238,0.69,159.64,159.6,6.95564687]
[1762417176152,8.64258387,159.64,159.6,6.95564687]
[1762417176726,14.2167215,159.64,159.6,6.26564687]
[1762417177041,0.71,159.63,159.59,14.21853015]
[1762417177353,0.71,159.63,159.59,6.95594628]
[1762417177548,29.25458387,159.67,159.62,7.95258387]
[1762417177747,20.592,159.66,159.61,7.95258387]
[1762417178121,21.302,159.66,159.61,8.64258387]
[1762417178457,21.302,159.66,159.61,14.9075053]
[1762417178753,21.302,159.66,159.62,7.95258387]
[1762417179337,21.302,159.66,159.61,6.95492143]
[1762417179338,20.592,159.66,159.63,8.64258387]
[1762417179835,0.71,159.68,159.64,8.64258387]
[1762417180560,0.71,159.68,159.64,14.90649925]
[1762417180930,7.95258387,159.65,159.6,0.69]
[1762417181154,7.95258387,159.65,159.6,8.64258387]
[1762417181332,7.95258387,159.65,159.61,0.69]
[1762417181734,8.66258387,159.64,159.59,6.95605677]
[1762417182128,7.95258387,159.63,159.59,0.69]
[1762417182359,7.95258387,159.62,159.58,6.26608147]
[1762417182550,8.66258387,159.62,159.58,6.95608147]
[1762417183062,70.592,159.67,159.59,7.95258387]
[1762417183236,7.95258387,159.63,159.58,14.21866534]
[1762417183428,7.95258387,159.63,159.58,6.26608147]
[1762417183634,7.95258387,159.62,159.58,0.69]
[1762417183855,7.95258387,159.61,159.56,7.95258387]
[1762417184052,7.95258387,159.6,159.56,0.69]
[1762417184238,0.71,159.61,159.55,6.2676277]
[1762417184553,7.95258387,159.6,159.55,6.9576277]
[1762417184764,7.95258387,159.6,159.55,0.69]
[1762417184933,7.95258387,159.6,159.55,6.95759038]
[1762417184934,8.66258387,159.59,159.55,6.95759038]
[1762417185530,0.71,159.59,159.55,6.95759038]
[1762417186671,50.0,159.63,159.56,0.69]
[1762417186953,20.592,159.63,159.57,7.95258387]
[1762417187160,21.302,159.63,159.58,7.95258387]
[1762417187650,0.71,159.62,159.58,8.64258387]
[1762417187848,0.71,159.62,159.55,21.93665963]
[1762417188061,0.71,159.62,159.57,7.95258387]
[1762417188556,0.71,159.62,159.56,0.69]
[1762417188850,0.71,159.64,159.59,7.95258387]
[1762417189024,21.302,159.64,159.59,7.95258387]
[1762417189224,20.592,159.63,159.59,8.64258387]
[1762417189429,21.302,159.64,159.59,8.64258387]
[1762417189430,0.71,159.64,159.59,8.64258387]
[1762417190656,0.71,159.64,159.59,7.95258387]
[1762417190853,0.71,159.64,159.6,6.26566416]
[1762417191045,0.71,159.64,159.59,8.64258387]
[1762417191046,14.92668372,159.64,159.59,8.64258387]
[1762417191440,0.71,159.63,159.59,6.95591351]
[1762417191639,8.66258387,159.63,159.59,6.26591351]
[1762417192261,0.7,159.62,159.59,6.26591351]
[1762417192466,8.65258387,159.62,159.57,41.90908077]
[1762417192759,8.65258387,159.62,159.57,33.9564969]
[1762417192935,0.7,159.61,159.57,33.9564969]
[1762417193945,14.21753794,159.62,159.57,33.9564969]
[1762417194153,14.91753794,159.62,159.57,33.9564969]
[1762417194558,14.21753794,159.62,159.57,33.9564969]
[1762417194749,0.7,159.61,159.57,33.9564969]
[1762417194946,0.7,159.61,159.57,41.90908077]
[1762417195338,0.7,159.61,159.57,14.90908077]
[1762417196048,0.7,159.62,159.57,14.89908077]
[1762417196254,14.21707966,159.63,159.57,14.21908077]
[1762417196556,14.91707966,159.63,159.58,0.68]
[1762417196741,14.91707966,159.63,159.58,8.63258387]
[1762417196938,6.26449579,159.63,159.58,14.89868016]
[1762417197157,6.96449579,159.63,159.58,14.89868016]
[1762417197969,14.21707966,159.63,159.58,6.26609629]
[1762417198138,0.7,159.62,159.58,14.89868016]
[1762417200743,6.96490609,159.62,159.58,6.26609629]
[1762417201042,14.91748996,159.62,159.58,6.26609629]
[1762417201441,7.95258387,159.6,159.56,27.0]
[1762417201665,7.95258387,159.59,159.55,6.94731456]
[1762417201968,7.95258387,159.59,159.54,14.22047995]
[1762417202181,0.7,159.58,159.54,8.63258387]
[1762417202368,14.91881848,159.59,159.55,0.68]
[1762417202569,14.91881848,159.59,159.53,14.22084158]
[1762417202891,14.91881848,159.59,159.55,0.68]
[1762417203064,14.91881848,159.59,159.53,14.90084158]
[1762417203364,8.65258387,159.58,159.52,7.95258387]
[1762417203549,8.65258387,159.57,159.51,24.30528399]
[1762417203742,8.65258387,159.57,159.52,6.26865137]
[1762417203945,0.7,159.62,159.56,7.95258387]
[1762417204159,0.7,159.62,159.57,7.95258387]
[1762417204160,20.592,159.6,159.57,7.95258387]
[1762417204372,20.592,159.6,159.56,7.95258387]
[1762417204563,21.292,159.6,159.56,6.94695452]
[1762417204747,21.292,159.6,159.56,14.89953839]
[1762417205162,21.292,159.6,159.56,6.94695452]
[1762417205471,21.292,159.6,159.56,14.89953839]
[1762417205649,16.75243876,159.66,159.59,7.95258387]
[1762417205849,0.7,159.65,159.61,7.95258387]
[1762417206460,14.91637849,159.65,159.6,7.95258387]
[1762417206654,7.95258387,159.63,159.58,8.63258387]
[1762417206853,20.592,159.63,159.59,7.95258387]
[1762417207067,10.48882769,159.64,159.59,8.63258387]
[1762417207261,10.48882769,159.64,159.6,0.68]